bitfinex/quotes_BTCUSD_20251114
["timestamp","ask_amount","ask_price","bid_price","bid_amount"]
[1763081535460,0.11980484,98890.0,98863.0,9e-05]
[1763081535461,0.00929369,98883.0,98863.0,9e-05]
[1763081535870,0.36641874,98883.0,98882.0,0.001]
[1763081536046,0.24568002,98882.0,98869.0,0.20228764]
[1763081536279,0.04341874,98876.0,98863.0,9e-05]
[1763081536616,0.04341874,98877.0,98868.0,0.20228888]
[1763081536846,0.00928884,98876.0,98867.0,0.20229012]
[1763081537184,0.04341874,98874.0,98863.0,9e-05]
[1763081537684,0.04341874,98872.0,98863.0,9e-05]
[1763081538121,0.44233291,98880.0,98863.0,9e-05]
[1763081538343,0.0712853,98879.0,98863.0,9e-05]
[1763081538543,0.04341874,98875.0,98866.0,0.20229283]
[1763081538744,0.04341874,98875.0,98866.0,0.20229371]
[1763081538954,0.04341874,98877.0,98871.0,0.20228244]
[1763081539195,0.04341874,98877.0,98875.0,0.20227431]
[1763081539445,0.24567505,98885.0,98875.0,0.20227431]
[1763081539681,0.04341874,98883.0,98876.0,0.20227249]
[1763081539900,0.09673122,98884.0,98863.0,9e-05]
[1763081539901,0.04341874,98879.0,98863.0,9e-05]
[1763081540118,0.21156429,98878.0,98868.0,0.09816915]
[1763081540319,0.20227223,98877.0,98868.0,0.09816915]
[1763081540558,0.06884799,98884.0,98869.0,0.20228787]
[1763081540772,0.16979203,98883.0,98870.0,0.20228515]
[1763081541004,0.04341874,98881.0,98870.0,0.20228582]
[1763081541214,0.04341874,98879.0,98870.0,0.20228582]
[1763081541424,0.00929663,98878.0,98871.0,0.20228275]
[1763081541638,0.00929663,98877.0,98873.0,0.20227829]
[1763081541844,0.001,98885.0,98873.0,0.20227829]
[1763081542058,0.20225951,98883.0,98872.0,0.20228127]
[1763081542306,0.02789379,98882.0,98881.0,0.20226332]
[1763081542488,0.45244208,98920.0,98891.0,0.23344287]
[1763081542687,0.20218875,98918.0,98891.0,0.27441287]
[1763081542923,0.22362335,98917.0,98891.0,0.27441287]
[1763081543126,0.20218772,98918.0,98891.0,0.27441287]
[1763081543328,0.47916585,98930.0,98891.0,0.23344287]
[1763081543533,0.02144417,98921.0,98891.0,0.23444287]
[1763081543781,0.20216911,98928.0,98891.0,0.23444287]
[1763081544009,0.02144167,98927.0,98891.0,0.23344287]
[1763081544217,0.02144167,98926.0,98891.0,0.23344287]
[1763081544445,0.02672479,98938.0,98921.0,0.20218153]
[1763081544644,0.00061508,98922.0,98921.0,0.23338153]
[1763081544866,0.00061508,98922.0,98921.0,0.33155068]
[1763081545893,0.00061508,98922.0,98921.0,0.33355068]
[1763081546104,0.20209088,98966.0,98921.0,0.33355068]
[1763081546105,0.02672479,98958.0,98957.0,0.20210798]
[1763081546277,0.0309199,98958.0,98957.0,0.20210798]
[1763081548037,0.2021611,98931.0,98921.0,0.001]
[1763081548236,0.0309199,98958.0,98921.0,0.001]
[1763081548237,0.20217855,98923.0,98921.0,0.001]
[1763081548438,0.00932072,98922.0,98921.0,0.001]
[1763081548733,0.00932072,98922.0,98907.0,0.09816915]
[1763081548734,0.00932072,98922.0,98908.0,0.20220811]
[1763081548940,0.00932072,98921.0,98907.0,0.09816915]
[1763081549144,0.20219721,98914.0,98907.0,0.09816915]
[1763081549334,0.00932072,98913.0,98907.0,0.09862768]
[1763081549538,0.00932072,98912.0,98907.0,0.09862768]
[1763081549697,0.00932072,98911.0,98909.0,0.20220507]
[1763081549890,0.24558801,98927.0,98907.0,0.09862768]
[1763081550101,0.20219372,98916.0,98907.0,0.09862768]
[1763081550302,0.00933458,98915.0,98907.0,0.09862768]
[1763081550505,0.20219789,98913.0,98907.0,0.09962768]
[1763081550703,0.00933458,98912.0,98907.0,0.09962768]
[1763081550975,0.00933458,98911.0,98907.0,0.09962768]
[1763081551156,0.00933458,98910.0,98907.0,0.09962768]
[1763081551497,0.00933458,98909.0,98907.0,0.30183617]
[1763081551675,0.00933458,98908.0,98907.0,0.30083617]
[1763081552430,0.00933458,98908.0,98907.0,0.30183617]
[1763081552610,0.00933458,98908.0,98907.0,0.30283617]
[1763081552739,0.00933458,98908.0,98907.0,0.30183617]
[1763081552945,0.00933458,98908.0,98907.0,0.09962768]
[1763081553167,0.00933458,98908.0,98907.0,0.00345853]
[1763081553789,0.00933458,98908.0,98907.0,0.10062768]
[1763081553987,0.00933458,98908.0,98907.0,0.10162768]
[1763081554388,0.02154354,98925.0,98907.0,0.30283374]
[1763081554632,0.03089206,98924.0,98922.0,0.09816915]
[1763081554835,0.03089206,98923.0,98922.0,0.09816915]
[1763081555202,0.03089206,98923.0,98907.0,0.00045853]
[1763081555203,0.20220811,98908.0,98907.0,0.00045853]
[1763081555386,0.03089206,98908.0,98907.0,0.00045853]
[1763081555583,0.00934852,98908.0,98907.0,0.00145853]
[1763081555795,0.21155663,98908.0,98907.0,0.00045853]
[1763081556031,0.27448264,98908.0,98907.0,0.00045853]
[1763081556501,0.31790138,98908.0,98907.0,0.00045853]
[1763081557166,0.31790138,98908.0,98907.0,0.00079621]
[1763081557541,0.27652514,98908.0,98907.0,0.00079621]
[1763081558164,0.27652514,98908.0,98907.0,0.00179621]
[1763081558979,0.59952514,98908.0,98907.0,0.00179621]
[1763081559179,0.61823317,98908.0,98907.0,0.00179621]
[1763081559387,2.65380409,98908.0,98907.0,0.00179621]
[1763081559597,2.75228745,98908.0,98907.0,0.00179621]
[1763081560015,2.75228745,98908.0,98907.0,1e-08]
[1763081560226,2.75228745,98908.0,98863.0,9e-05]
[1763081560227,0.20229743,98865.0,98863.0,9e-05]
[1763081560443,0.0004606,98865.0,98863.0,9e-05]
[1763081560672,0.0780382,98865.0,98864.0,0.00159443]
[1763081560886,0.04135027,98865.0,98864.0,0.00159443]
[1763081561106,0.323,98872.0,98864.0,0.00159443]
[1763081561318,0.20228143,98873.0,98865.0,0.09816915]
[1763081561533,0.04341874,98878.0,98865.0,0.09816915]
[1763081561748,0.00935115,98877.0,98864.0,0.00013829]
[1763081561962,0.04341874,98875.0,98865.0,0.09816915]
[1763081562180,0.20227764,98874.0,98865.0,0.09816915]
[1763081562405,0.44233291,98880.0,98865.0,0.30046316]
[1763081562611,0.24569006,98878.0,98869.0,0.20228787]
[1763081562865,0.24569006,98878.0,98870.0,0.2022846]
[1763081563091,0.04341874,98879.0,98864.0,0.00013829]
[1763081563765,0.20228581,98871.0,98864.0,0.00013829]
[1763081563979,0.04341874,98878.0,98864.0,0.00013829]
[1763081564186,0.20228779,98870.0,98864.0,0.00013829]
[1763081564409,0.20229417,98866.0,98864.0,0.00013829]
[1763081564621,0.04341874,98878.0,98864.0,0.00013829]
[1763081564844,0.2457148,98865.0,98864.0,0.00013829]
[1763081565079,0.29529988,98865.0,98864.0,0.00013829]
[1763081565291,0.61829988,98865.0,98864.0,0.00013829]
[1763081566651,2.61829988,98865.0,98864.0,0.00013829]
[1763081567099,2.61829988,98865.0,98864.0,0.00173272]
[1763081567321,2.71678324,98865.0,98864.0,0.00173272]
[1763081567551,0.41600382,98865.0,98864.0,0.00173272]
[1763081567821,0.03088688,98865.0,98864.0,0.00173272]
[1763081568268,0.0093491,98865.0,98864.0,0.00173272]
[1763081568475,0.05276784,98865.0,98864.0,0.00173272]
[1763081568697,0.27660168,98865.0,98864.0,0.00173272]
[1763081568911,0.35519206,98865.0,98864.0,0.00173272]
[1763081569546,0.33656185,98865.0,98864.0,0.00173272]
[1763081569972,0.07430562,98865.0,98864.0,0.00173272]
[1763081570408,0.03088688,98865.0,98864.0,0.00173272]
[1763081570631,0.0093491,98865.0,98864.0,0.00173272]
[1763081571088,0.5780639,98865.0,98864.0,0.00173272]
[1763081571294,0.39720701,98865.0,98864.0,0.00173272]
[1763081571532,0.37576784,98865.0,98864.0,0.00173272]
[1763081571736,0.05276784,98865.0,98864.0,0.00173272]
[1763081572305,0.0093491,98865.0,98864.0,0.00173272]
[1763081573008,0.21164516,98865.0,98864.0,0.00173272]
[1763081573419,0.0093491,98865.0,98864.0,0.00173272]
[1763081574691,0.0912003,98865.0,98864.0,0.00173272]
[1763081575238,0.0818512,98865.0,98864.0,0.00173272]
[1763081575448,0.09113693,98865.0,98864.0,0.00173272]
[1763081576122,0.08017967,98866.0,98864.0,0.00173272]
[1763081576333,0.20226066,98883.0,98865.0,0.09816915]
[1763081576577,0.323,98878.0,98865.0,0.09816915]
[1763081576774,0.20224536,98890.0,98877.0,0.2022695]
[1763081576939,0.323,98887.0,98877.0,0.2022695]
[1763081577132,0.323,98887.0,98866.0,0.06084]
[1763081577133,0.02141447,98886.0,98866.0,0.06084]
[1763081577334,0.02141447,98886.0,98884.0,0.20225717]
[1763081577576,0.01015039,98896.0,98885.0,0.02963]
[1763081577799,0.02684521,98898.0,98885.0,0.02963]
[1763081577800,0.02141447,98898.0,98897.0,0.2022306]
[1763081578009,0.02684521,98921.0,98909.0,0.20220606]
[1763081578217,0.01861197,98917.0,98913.0,0.20219635]
[1763081578421,0.02684521,98921.0,98914.0,0.20219483]
[1763081578625,0.02684521,98924.0,98914.0,0.20219483]
[1763081578850,0.02684521,98923.0,98915.0,0.23182358]
[1763081579058,0.02684521,98923.0,98917.0,0.13856915]
[1763081579274,0.0482839,98929.0,98917.0,0.09816915]
[1763081579478,0.07038053,98957.0,98917.0,0.09816915]
[1763081579479,0.02143869,98928.0,98917.0,0.09816915]
[1763081579683,0.02143869,98929.0,98917.0,0.09816915]
[1763081579860,0.02143869,98930.0,98917.0,0.09816915]
[1763081580068,0.02143869,98931.0,98917.0,0.09816915]
[1763081580226,0.02684521,98933.0,98917.0,0.09816915]
[1763081580634,0.02684521,98933.0,98917.0,0.09916915]
[1763081581330,0.03585769,98940.0,98917.0,0.10016915]
[1763081581482,0.02682777,98933.0,98917.0,0.10016915]
[1763081581899,0.02682777,98937.0,98917.0,0.10016915]
[1763081582104,0.02682777,98938.0,98917.0,0.10016915]
[1763081582312,0.0102365,98963.0,98917.0,0.10016915]
[1763081582313,0.02682777,98939.0,98918.0,0.20218767]
[1763081582513,0.07038053,98967.0,98917.0,0.34451477]
[1763081582514,0.02682777,98943.0,98941.0,0.20214066]
[1763081582862,0.02682777,98957.0,98953.0,0.20211615]
[1763081583066,0.02682777,98957.0,98951.0,0.20212024]
[1763081583067,0.02682777,98962.0,98960.0,0.20210185]
[1763081583185,0.03585769,98967.0,98962.0,0.20209777]
[1763081583393,0.05450323,98966.0,98963.0,0.20209573]
[1763081583591,0.03585769,98970.0,98969.0,0.20208348]
[1763081583813,0.01864571,98970.0,98969.0,0.20208348]
[1763081584181,0.01910688,98970.0,98969.0,0.20208348]
[1763081584529,0.01910688,98970.0,98966.0,0.20208797]
[1763081584735,0.02686216,98967.0,98966.0,0.20208797]
[1763081584898,0.04550787,98967.0,98966.0,0.20208797]
[1763081585300,0.04550787,98967.0,98965.0,0.20209037]
[1763081585501,0.01864571,98966.0,98965.0,0.20209037]
[1763081585928,0.02686216,98967.0,98964.0,0.30026143]
[1763081586130,0.01865104,98966.0,98965.0,0.20209164]
[1763081587056,0.01865104,98966.0,98965.0,0.30026079]
[1763081587240,0.01865104,98966.0,98965.0,0.001]
[1763081587383,0.08355431,98966.0,98965.0,0.001]
[1763081587802,0.0848003,98966.0,98965.0,0.001]
[1763081588004,0.20211071,98956.0,98943.0,0.20213539]
[1763081588213,0.02685648,98952.0,98940.0,0.01010713]
[1763081588424,0.00067506,98944.0,98943.0,0.20213658]
[1763081589265,0.01933473,98944.0,98924.0,0.03067]
[1763081589469,0.20215147,98936.0,98928.0,0.09816915]
[1763081589662,0.04015653,98935.0,98932.0,0.20215784]
[1763081589877,0.02687332,98942.0,98939.0,0.20214343]
[1763081590119,0.01010509,98960.0,98939.0,0.20214343]
[1763081590120,0.01865778,98941.0,98940.0,0.20214271]
[1763081591292,0.01865778,98941.0,98938.0,0.23281493]
[1763081591506,0.01865778,98940.0,98932.0,0.03067]
[1763081591707,0.01865778,98939.0,98938.0,0.20214544]
[1763081591905,0.01865778,98939.0,98932.0,0.03067]
[1763081591906,0.01879605,98939.0,98932.0,0.03067]
[1763081592057,0.01865778,98938.0,98932.0,0.03067]
[1763081592266,0.00013827,98939.0,98911.0,0.05798]
[1763081592422,0.44233291,98930.0,98913.0,0.20219618]
[1763081592814,0.040151,98929.0,98910.0,0.0101102]
[1763081593050,0.01865234,98928.0,98924.0,0.20217517]
[1763081593222,0.02149866,98933.0,98910.0,0.0101102]
[1763081593364,0.01865015,98932.0,98917.0,0.20218888]
[1763081593575,0.03048,98931.0,98910.0,0.0101102]
[1763081593777,0.01965015,98930.0,98910.0,0.0101102]
[1763081593989,0.001,98930.0,98927.0,0.20216744]
[1763081594205,0.02163693,98939.0,98929.0,0.03937]
[1763081594439,0.001,98932.0,98926.0,0.20217019]
[1763081594632,0.00023372,98927.0,98924.0,0.20217456]
[1763081594809,0.00023372,98927.0,98926.0,0.09816915]
[1763081595010,0.00023372,98927.0,98908.0,0.03067]
[1763081595208,0.01864516,98926.0,98908.0,0.03067]
[1763081595450,0.20218826,98918.0,98908.0,0.03067]
[1763081595787,0.20218826,98918.0,98896.0,0.09816915]
[1763081595788,0.06490143,98917.0,98896.0,0.09816915]
[1763081596089,0.06490143,98917.0,98884.0,0.05798]
[1763081596090,0.06206495,98917.0,98903.0,0.20221745]
[1763081596299,0.08355053,98917.0,98902.0,0.20221996]
[1763081596487,0.08355053,98917.0,98906.0,0.20221169]
[1763081596488,0.06206495,98917.0,98906.0,0.20221169]
[1763081596690,0.01864621,98917.0,98912.0,0.03067]
[1763081596890,0.01864621,98917.0,98915.0,0.20219233]
[1763081597049,0.02171776,98927.0,98924.0,0.20217429]
[1763081597253,0.02797278,98926.0,98912.0,0.03067]
[1763081597467,0.02797278,98925.0,98912.0,0.03067]
[1763081597652,0.01864852,98924.0,98920.0,0.20218269]
[1763081597865,0.01864852,98924.0,98919.0,0.20218539]
[1763081598098,0.04013256,98924.0,98892.0,0.20224014]
[1763081598314,0.20218661,98919.0,98891.0,0.05798]
[1763081598526,0.64543286,98918.0,98885.0,0.09816915]
[1763081598740,2.91588575,98917.0,98870.0,0.10828344]
[1763081598951,2.41588575,98917.0,98916.0,1e-08]
[1763081599390,2.5140549,98917.0,98916.0,1e-08]
[1763081599606,2.61253826,98917.0,98916.0,1e-08]
[1763081599985,2.61353826,98917.0,98916.0,1e-08]
[1763081600189,2.61253826,98917.0,98916.0,1e-08]
[1763081600312,2.61453826,98917.0,98916.0,1e-08]
[1763081600515,2.61753826,98917.0,98916.0,1e-08]
[1763081600720,2.61453826,98917.0,98916.0,1e-08]
[1763081601581,2.61453826,98917.0,98863.0,9e-05]
[1763081601582,0.2022981,98864.0,98863.0,9e-05]
[1763081601811,0.24571684,98864.0,98863.0,9e-05]
[1763081601986,0.04341874,98864.0,98863.0,9e-05]
[1763081602662,0.04341874,98864.0,98863.0,0.00022829]
[1763081605854,0.24571684,98864.0,98863.0,0.00022829]
[1763081606061,0.04441874,98864.0,98863.0,0.00022829]
[1763081606274,0.04541874,98864.0,98863.0,0.00022829]
[1763081606430,0.04441874,98864.0,98863.0,0.00022829]
[1763081606838,0.001,98864.0,98863.0,0.00022829]
[1763081607035,0.04341874,98873.0,98863.0,0.20390372]
[1763081607239,0.04341874,98874.0,98863.0,0.00022829]
[1763081607602,0.04341874,98875.0,98873.0,0.20227885]
[1763081607981,0.0102933,98885.0,98871.0,0.20228289]
[1763081607982,0.04341874,98878.0,98876.0,0.20227151]
[1763081608181,0.323,98879.0,98863.0,0.20252721]
[1763081608387,0.20229673,98865.0,98863.0,0.00022829]
[1763081608592,0.04341874,98864.0,98863.0,0.00022829]
[1763081608801,0.08615668,98864.0,98863.0,0.00022829]
[1763081610704,0.08715668,98864.0,98863.0,0.00022829]
[1763081610903,0.41015668,98864.0,98863.0,0.00022829]
[1763081611196,0.41115668,98864.0,98863.0,0.00022829]
[1763081611618,0.36741874,98864.0,98863.0,0.00022829]
[1763081612062,0.36841874,98864.0,98863.0,0.00022829]
[1763081612469,0.04441874,98864.0,98863.0,0.00022829]
[1763081612666,0.001,98864.0,98863.0,0.00022829]
[1763081612894,0.001,98864.0,98863.0,0.00160562]
[1763081613418,0.20229332,98867.0,98863.0,0.00160562]
[1763081613618,0.04341874,98866.0,98863.0,0.00160562]
[1763081613803,0.001,98864.0,98863.0,0.00022829]
[1763081614343,0.04341874,98870.0,98869.0,0.20228787]
[1763081614553,0.01011122,98900.0,98865.0,0.20229606]
[1763081614554,0.36641874,98879.0,98876.0,0.20227282]
[1763081614766,0.36641874,98879.0,98877.0,0.20227087]
[1763081615375,0.323,98879.0,98877.0,0.20227087]
[1763081615651,0.323,98888.0,98881.0,0.20226237]
[1763081615783,0.323,98888.0,98877.0,0.20227087]
[1763081615784,0.001,98879.0,98877.0,0.20227087]
[1763081615990,0.001,98879.0,98864.0,0.30344582]
[1763081615991,0.001,98879.0,98860.0,0.06098]
[1763081616227,0.001,98879.0,98877.0,0.20227137]
[1763081616621,0.001,98879.0,98860.0,0.06098]
[1763081616622,0.20326781,98879.0,98860.0,0.06098]
[1763081616820,0.20225992,98883.0,98860.0,0.06098]
[1763081616821,0.36641874,98889.0,98860.0,0.06098]
[1763081617048,0.20227028,98878.0,98864.0,0.2022981]
[1763081617238,0.04341874,98879.0,98860.0,0.0004]
[1763081617449,0.2022909,98868.0,98861.0,0.202303]
[1763081617655,0.04341874,98879.0,98860.0,0.0004]
[1763081617985,0.20226864,98879.0,98864.0,0.2022981]
[1763081618184,0.20327129,98878.0,98860.0,0.0004]
[1763081618387,0.20227263,98877.0,98870.0,0.20228382]
[1763081618592,0.001,98878.0,98869.0,0.20228662]
[1763081618763,0.001,98878.0,98871.0,0.20228317]
[1763081618764,0.20226991,98878.0,98871.0,0.20228317]
[1763081618956,0.20226991,98878.0,98872.0,0.20228095]
[1763081619152,0.20228242,98872.0,98860.0,0.0004]
[1763081619372,0.20228678,98870.0,98864.0,0.2022981]
[1763081619631,0.04341874,98879.0,98861.0,0.20230247]
[1763081619860,0.04341874,98879.0,98860.0,0.0004]
[1763081619861,0.46458789,98879.0,98860.0,0.0004]
[1763081620120,0.56871684,98864.0,98860.0,0.0004]
[1763081620318,0.66604744,98864.0,98860.0,0.0004]
[1763081621156,0.66688599,98864.0,98860.0,0.0004]
[1763081621593,0.71647899,98864.0,98860.0,0.0004]
[1763081622423,0.71747899,98864.0,98860.0,0.0004]
[1763081622618,0.71847899,98864.0,98860.0,0.0004]
[1763081622846,0.71747899,98864.0,98860.0,0.0004]
[1763081623007,0.81596235,98864.0,98860.0,0.0004]
[1763081623371,2.81596235,98864.0,98860.0,0.0004]
[1763081624103,2.81696235,98864.0,98860.0,0.0004]
[1763081625044,2.5768911,98864.0,98860.0,0.0004]
[1763081625222,0.051593,98864.0,98862.0,0.20230092]
[1763081625428,0.04224274,98864.0,98863.0,0.00160562]
[1763081625630,0.04541874,98864.0,98863.0,0.00160562]
[1763081625833,0.002,98864.0,98863.0,0.00160562]
[1763081626254,0.0669621,98864.0,98863.0,0.00160562]
[1763081626631,0.08724024,98864.0,98863.0,0.00160562]
[1763081626818,0.08624024,98864.0,98863.0,0.00160562]
[1763081627259,0.10495417,98864.0,98863.0,0.00160562]
[1763081627465,0.43731052,98864.0,98863.0,0.00160562]
[1763081627820,0.09403238,98864.0,98863.0,0.00160562]
[1763081628150,0.08467564,98864.0,98863.0,0.00160562]
[1763081628476,0.09403763,98864.0,98863.0,0.00160562]
[1763081628899,0.41703763,98864.0,98863.0,0.00160562]
[1763081630105,0.44392469,98864.0,98863.0,0.00160562]
[1763081630317,0.51552099,98864.0,98863.0,0.00160562]
[1763081630741,0.44397156,98864.0,98863.0,0.00160562]
[1763081631197,0.51520678,98864.0,98863.0,0.00160562]
[1763081632722,2.51520678,98864.0,98863.0,0.00160562]
[1763081632928,2.55105619,98864.0,98863.0,0.00160562]
[1763081633130,0.41703763,98864.0,98863.0,0.00160562]
[1763081633323,0.61369014,98864.0,98863.0,0.00160562]
[1763081633566,0.51420678,98864.0,98863.0,0.00160562]
[1763081634013,0.51620678,98864.0,98863.0,0.00160562]
[1763081634181,0.51720678,98864.0,98863.0,0.00160562]
[1763081634329,0.51420678,98864.0,98863.0,0.00160562]
[1763081634770,0.51620678,98864.0,98863.0,0.00160562]
[1763081634972,0.07755865,98864.0,98863.0,0.20390577]
[1763081635278,0.02254336,98864.0,98863.0,0.00160562]
[1763081635471,0.02906401,98864.0,98863.0,0.00160562]
[1763081635676,0.02906399,98864.0,98863.0,0.00160562]
[1763081635849,0.02806399,98864.0,98863.0,0.00160562]
[1763081636066,0.0187094,98864.0,98863.0,0.00160562]
[1763081636262,0.02909416,98864.0,98863.0,0.00160562]
[1763081636642,0.02809416,98864.0,98863.0,0.00160562]
[1763081637046,0.04026259,98864.0,98863.0,0.00160562]
[1763081637271,0.02810168,98864.0,98863.0,0.00160562]
[1763081637813,0.0187094,98864.0,98863.0,0.00160562]
[1763081638224,0.04341874,98871.0,98870.0,0.20228582]
[1763081638433,0.07160866,98871.0,98870.0,0.20228582]
[1763081638648,0.09316185,98871.0,98870.0,0.20228582]
[1763081638859,0.04974311,98871.0,98870.0,0.20228582]
[1763081639103,0.02818992,98871.0,98870.0,0.20228582]
[1763081640590,0.01879328,98871.0,98870.0,0.20328582]
[1763081641452,0.01879328,98871.0,98870.0,0.20228582]
[1763081641878,0.01879328,98871.0,98870.0,0.20328582]
[1763081642342,0.01879328,98871.0,98870.0,0.25945582]
[1763081642573,0.01879328,98871.0,98870.0,0.20328582]
[1763081643221,0.02693976,98880.0,98879.0,0.20226741]
[1763081643434,0.02818572,98880.0,98879.0,0.20226741]
[1763081644099,0.02818572,98880.0,98870.0,0.00119534]
[1763081644100,0.06815359,98880.0,98870.0,0.00119534]
[1763081644302,0.56871684,98864.0,98842.0,0.02776]
[1763081644507,0.61854418,98864.0,98844.0,0.09816915]
[1763081644755,0.04982734,98864.0,98847.0,0.05617]
[1763081644954,0.0404321,98864.0,98858.0,0.20230955]
[1763081645173,0.01879048,98864.0,98862.0,0.20230171]
[1763081645349,0.02164162,98870.0,98864.0,0.05617]
[1763081645557,0.02164162,98874.0,98871.0,0.20228168]
[1763081645773,0.02817886,98873.0,98872.0,0.20228143]
[1763081646522,0.02817886,98873.0,98859.0,0.09816915]
[1763081646745,0.02817886,98872.0,98867.0,0.20229048]
[1763081646953,0.01878591,98871.0,98868.0,0.20228964]
[1763081647176,2.37580666,98870.0,98840.0,0.0004]
[1763081647440,0.46458789,98864.0,98840.0,0.0004]
[1763081647649,0.6128867,98864.0,98840.0,0.0004]
[1763081648078,0.6128867,98864.0,98840.0,0.01051736]
[1763081648314,0.6128867,98864.0,98840.0,0.0004]
[1763081648315,0.7710332,98860.0,98840.0,0.0004]
[1763081648538,2.66692692,98844.0,98843.0,10.36797684]
[1763081648784,0.48622951,98844.0,98843.0,10.36797684]
[1763081648989,0.323,98844.0,98843.0,10.36797684]
[1763081649444,0.39871874,98844.0,98843.0,10.36797684]
[1763081649638,0.36641874,98844.0,98843.0,10.36797684]
[1763081649799,0.04341874,98844.0,98843.0,10.36797684]
[1763081650229,0.04341874,98844.0,98843.0,10.3698743]
[1763081650689,0.24575777,98844.0,98843.0,10.3698743]
[1763081651106,0.04341874,98844.0,98843.0,10.3698743]
[1763081652056,0.44680966,98859.0,98843.0,10.57221333]
[1763081652057,0.04341874,98857.0,98843.0,10.57221333]
[1763081652309,0.06504551,98857.0,98843.0,10.36797684]
[1763081652469,0.06504551,98857.0,98856.0,0.00155935]
[1763081652680,0.51011429,98870.0,98856.0,0.20387178]
[1763081652987,2.0,98868.0,98843.0,10.36797684]
[1763081653326,0.55581205,98853.0,98843.0,10.36797684]
[1763081653526,0.20232353,98852.0,98846.0,0.20233362]
[1763081653726,0.20232,98854.0,98846.0,0.20233362]
[1763081653936,0.20231652,98855.0,98843.0,10.36797684]
[1763081654062,0.06727687,98854.0,98844.0,0.09816915]
[1763081654275,0.04341874,98856.0,98855.0,0.20231534]
[1763081654677,0.04341874,98858.0,98843.0,10.36797684]
[1763081654878,0.323,98859.0,98855.0,0.20231557]
[1763081655097,0.323,98859.0,98857.0,0.20231174]
[1763081655286,0.323,98861.0,98844.0,0.09816915]
[1763081655490,0.202309,98859.0,98853.0,0.20231977]
[1763081655739,0.4428149,98860.0,98848.0,0.20233085]
[1763081655948,0.4428149,98860.0,98843.0,10.36797684]
[1763081655949,0.04341874,98857.0,98843.0,10.36797684]
[1763081656122,0.2023381,98845.0,98843.0,10.36797684]
[1763081656751,0.04341874,98853.0,98847.0,0.20233236]
[1763081656987,0.2457409,98853.0,98843.0,10.57031587]
[1763081657123,0.2457409,98853.0,98843.0,10.36797684]
[1763081657124,0.20233817,98845.0,98843.0,10.36797684]
[1763081657321,0.4428149,98854.0,98846.0,0.20233333]
[1763081657529,0.2023217,98853.0,98846.0,0.20233333]
[1763081657764,0.05422983,98854.0,98850.0,0.20232611]
[1763081658104,0.05422983,98854.0,98852.0,0.20232228]
[1763081658413,0.48623364,98860.0,98859.0,0.20230833]
[1763081658615,0.48623364,98860.0,98849.0,0.20232471]
[1763081658616,0.04341874,98859.0,98852.0,0.20232231]
[1763081658753,0.20231102,98858.0,98852.0,0.20232231]
[1763081658960,0.20231102,98858.0,98843.0,10.42128684]
[1763081658961,0.06643114,98857.0,98843.0,10.57031673]
[1763081659175,0.04341874,98845.0,98843.0,10.36797684]
[1763081659393,0.24575693,98845.0,98843.0,10.36797684]
[1763081660193,0.24575693,98845.0,98843.0,10.36897684]
[1763081661500,0.323,98852.0,98843.0,10.36897684]
[1763081661879,0.20232861,98850.0,98843.0,10.36897684]
[1763081662056,0.20233846,98845.0,98843.0,10.36897684]
[1763081662257,0.22078173,98845.0,98843.0,10.36897684]
[1763081662828,0.22078173,98845.0,98843.0,10.36797684]
[1763081663030,0.01844327,98845.0,98843.0,10.36797684]
[1763081663206,0.13218884,98930.0,98843.0,10.36797684]
[1763081663207,0.323,98857.0,98851.0,0.20232315]
[1763081663406,0.2023175,98855.0,98843.0,10.36797684]
[1763081663641,0.323,98857.0,98843.0,10.36797684]
[1763081663642,0.323,98857.0,98848.0,0.20232986]
[1763081663772,0.323,98857.0,98844.0,0.09816915]
[1763081663975,0.323,98857.0,98854.0,0.2023169]
[1763081664202,0.323,98859.0,98856.0,0.00155935]
[1763081664407,0.323,98859.0,98851.0,0.20232427]
[1763081664581,0.323,98857.0,98851.0,0.20232427]
[1763081664782,0.323,98857.0,98852.0,0.20232159]
[1763081664992,0.324,98857.0,98855.0,0.20231516]
[1763081665222,0.001,98857.0,98855.0,0.20231516]
[1763081665613,0.02161467,98863.0,98856.0,0.20231447]
[1763081665817,0.04131806,98863.0,98857.0,0.20231243]
[1763081666061,0.04131806,98863.0,98859.0,0.20230767]
[1763081666232,0.04131806,98863.0,98861.0,0.20230366]
[1763081666441,0.02161467,98863.0,98861.0,0.20230366]
[1763081666794,0.02161467,98863.0,98856.0,0.2023144]
[1763081666795,0.323,98871.0,98870.0,0.20228582]
[1763081667000,0.02161851,98871.0,98870.0,0.20228582]
[1763081667141,0.02161851,98879.0,98857.0,0.25562038]
[1763081667343,0.08813784,98878.0,98877.0,0.20227087]
[1763081667544,0.02161851,98878.0,98876.0,0.20227212]
[1763081667744,0.02161851,98884.0,98880.0,0.20226472]
[1763081667953,0.02814678,98883.0,98881.0,0.20226226]
[1763081668132,0.02161851,98884.0,98883.0,0.20225923]
[1763081668334,0.04977021,98884.0,98879.0,0.2022632]
[1763081668575,0.0187678,98883.0,98881.0,0.20226207]
[1763081668755,0.0187678,98883.0,98879.0,0.20240052]
[1763081668756,0.02161851,98887.0,98885.0,0.20225372]
[1763081668960,0.02815605,98886.0,98885.0,0.20225372]
[1763081669181,0.0187707,98886.0,98885.0,0.20225372]
[1763081669429,0.02161851,98887.0,98885.0,0.20225372]
[1763081669803,0.05878491,98887.0,98885.0,0.20225372]
[1763081669954,0.02161851,98887.0,98879.0,0.00013733]
[1763081670169,0.323,98889.0,98886.0,0.00077944]
[1763081670370,0.323,98889.0,98879.0,0.00013733]
[1763081670371,0.02161851,98888.0,98887.0,0.20225105]
[1763081671690,0.02704548,98891.0,98890.0,0.20224491]
[1763081671899,0.04582077,98891.0,98890.0,0.20224491]
[1763081672319,0.02161851,98891.0,98890.0,0.20224491]
[1763081672503,0.02704548,98892.0,98890.0,0.20224491]
[1763081672708,0.02704548,98893.0,98892.0,0.20224082]
[1763081673100,0.02704548,98894.0,98892.0,0.20224082]
[1763081673311,0.02704548,98895.0,98894.0,0.20223673]
[1763081673511,0.04580931,98895.0,98894.0,0.20223673]
[1763081673746,0.0486627,98898.0,98897.0,0.2022306]
[1763081673996,0.02161732,98898.0,98897.0,0.2022306]
[1763081674186,0.01010917,98920.0,98899.0,0.20222651]
[1763081674187,0.02704548,98900.0,98899.0,0.20222651]
[1763081674430,0.02704548,98901.0,98899.0,0.20222651]
[1763081675182,0.02704548,98902.0,98901.0,0.20222242]
[1763081675394,0.02704548,98904.0,98903.0,0.20221833]
[1763081675580,0.04579788,98904.0,98903.0,0.20221833]
[1763081675778,0.02704548,98905.0,98903.0,0.20255603]
[1763081675979,0.02704548,98905.0,98903.0,0.20221833]
[1763081676392,0.04865697,98908.0,98907.0,0.20221015]
[1763081676619,0.01874813,98908.0,98907.0,0.20221015]
[1763081676870,0.01874795,98908.0,98901.0,0.20222242]
[1763081677022,0.04574484,98907.0,98900.0,0.0278]